bitfinex/quotes_SOLUSD_20220307
["timestamp","ask_amount","ask_price","bid_price","bid_amount"]
[1646689391022,18.4301,81.47,81.391,23.588]
[1646689391220,18.4301,81.47,81.392,6.25]
[1646689391422,18.4301,81.47,81.392,0.25]
[1646689391623,125.73613526,81.469,81.379,2.83613526]
[1646689391822,122.9,81.449,81.367,2.83613526]
[1646689392025,122.9,81.447,81.343,18.4994]
[1646689392320,42.83115071,81.448,81.341,24.3271]
[1646689392321,122.9,81.445,81.341,24.3271]
[1646689392521,0.25,81.444,81.341,24.3271]
[1646689392723,122.9,81.439,81.341,24.3271]
[1646689392920,14.43,81.44,81.342,6.0]
[1646689392921,122.9,81.437,81.342,6.0]
[1646689393119,122.9,81.435,81.342,6.0]
[1646689393320,122.9,81.433,81.342,6.0]
[1646689393524,122.9,81.429,81.341,6.0]
[1646689393721,18.443,81.41,81.341,6.0]
[1646689393921,28.48255391,81.409,81.341,6.0]
[1646689394522,28.48255391,81.409,81.342,0.25]
[1646689396421,28.48255391,81.409,81.35,18.4406]
[1646689396625,28.48255391,81.409,81.351,0.25]
[1646689396922,2.83613526,81.438,81.351,0.25]
[1646689397123,14.43,81.45,81.351,0.25]
[1646689397524,2.83613526,81.449,81.351,0.25]
[1646689397822,2.83613526,81.449,81.36,18.4381]
[1646689397823,122.9,81.447,81.36,18.4381]
[1646689398026,27.69962453,81.448,81.349,0.25]
[1646689398027,122.9,81.439,81.349,0.25]
[1646689398223,0.25,81.438,81.349,0.25]
[1646689398425,3.08613526,81.438,81.349,0.25]
[1646689398622,122.9,81.436,81.349,0.25]
[1646689398823,0.25,81.435,81.349,0.25]
[1646689399023,18.4446,81.42,81.349,0.25]
[1646689399226,35.93138899,81.419,81.347,0.25]
[1646689400323,18.4417,81.41,81.35,18.4406]
[1646689400525,0.25,81.409,81.351,0.25]
[1646689400823,35.93138899,81.419,81.351,0.25]
[1646689401623,35.93138899,81.419,81.36,18.4361]
[1646689401826,35.93138899,81.419,81.361,0.25]
[1646689402825,35.93138899,81.419,81.361,6.393]
[1646689403225,35.93138899,81.419,81.361,0.25]
[1646689405930,35.93138899,81.419,81.362,6.143]
[1646689406232,18.4412,81.41,81.346,53.8067]
[1646689406433,0.25,81.409,81.346,6.0]
[1646689406632,3.08613526,81.409,81.313,100.0]
[1646689406832,2.83613526,81.408,81.314,52.9559]
[1646689407037,0.25,81.407,81.314,52.9559]
[1646689407238,122.9,81.399,81.314,52.9559]
[1646689407437,0.25,81.398,81.314,52.9559]
[1646689407737,3.08613526,81.398,81.315,0.25]
[1646689407936,2.83613526,81.397,81.316,6.144]
[1646689408135,2.83613526,81.397,81.315,0.25]
[1646689408136,0.25,81.396,81.317,0.25]
[1646689408336,0.25,81.396,81.315,0.25]
[1646689408536,18.4494,81.38,81.315,0.25]
[1646689408736,37.92656383,81.379,81.315,0.25]
[1646689409739,18.4498,81.37,81.315,0.25]
[1646689409937,0.25,81.369,81.315,0.25]
[1646689410738,0.25,81.369,81.32,18.4485]
[1646689411138,0.25,81.378,81.321,0.25]
[1646689411537,0.25,81.378,81.322,6.146]
[1646689411841,0.25,81.378,81.323,0.25]
[1646689412037,0.25,81.378,81.324,6.146]
[1646689412240,0.25,81.378,81.325,0.25]
[1646689412438,0.25,81.378,81.326,6.146]
[1646689412637,0.25,81.378,81.327,0.25]
[1646689413039,0.25,81.378,81.328,6.146]
[1646689413960,0.25,81.378,81.327,0.25]
[1646689414161,0.25,81.378,81.322,0.25]
[1646689414563,18.4495,81.37,81.321,0.25]
[1646689414865,0.25,81.369,81.321,0.25]
[1646689417370,0.25,81.369,81.321,6.396]
[1646689417968,0.25,81.369,81.321,0.25]
[1646689419170,0.25,81.378,81.33,18.4462]
[1646689419369,23.51622257,81.414,81.331,123.18375519]
[1646689419668,2.83613526,81.417,81.333,0.44707076]
[1646689419872,48.11952257,81.431,81.335,0.44707076]
[1646689420071,2.83613526,81.429,81.337,0.44707076]
[1646689420272,125.73613526,81.429,81.338,6.143]
[1646689420470,125.73613526,81.429,81.337,6.25]
[1646689420471,18.4403,81.41,81.35,18.434]
[1646689420669,61.4747,81.42,81.351,0.25]
[1646689421070,0.25,81.419,81.351,0.25]
[1646689421272,123.15,81.419,81.351,0.25]
[1646689421569,122.9,81.419,81.351,0.25]
[1646689421969,18.4433,81.4,81.351,0.25]
[1646689422372,33.8679078,81.399,81.351,0.25]
[1646689422772,2.83613526,81.42,81.36,18.4396]
[1646689422971,0.25,81.419,81.361,0.25]
[1646689423172,18.6832,81.44,81.37,61.4425]
[1646689423371,18.6832,81.44,81.371,0.25]
[1646689423572,21.51933526,81.44,81.371,0.25]
[1646689423771,30.4491738,81.439,81.371,0.25]
[1646689423973,0.25,81.438,81.371,0.25]
[1646689424171,3.08613526,81.438,81.371,0.25]
[1646689424371,2.83613526,81.437,81.371,0.25]
[1646689424571,0.25,81.436,81.363,0.25]
[1646689424771,0.25,81.436,81.364,6.142]
[1646689424975,2.83613526,81.435,81.365,0.25]
[1646689425272,18.4385,81.42,81.37,18.4371]
[1646689425475,18.4385,81.42,81.371,0.25]
[1646689426277,18.4413,81.41,81.362,6.142]
[1646689426475,122.9,81.408,81.342,6.143]
[1646689426675,0.25,81.407,81.309,54.2593]
[1646689426876,3.08613526,81.407,81.309,54.2593]
[1646689427075,25.5095559,81.406,81.309,54.2593]
[1646689427275,122.9,81.389,81.309,54.2593]
[1646689427479,0.25,81.388,81.309,23.1489]
[1646689427677,73.9,81.386,81.286,6.146]
[1646689427876,122.9,81.383,81.276,6.147]
[1646689428175,122.9,81.369,81.261,6.147]
[1646689428375,18.4606,81.34,81.262,6.0]
[1646689428577,36.36569376,81.339,81.263,106.149]
[1646689428777,36.36569376,81.339,81.264,6.0]
[1646689429076,125.73613526,81.338,81.265,6.149]
[1646689429274,0.25,81.337,81.266,0.25]
[1646689429474,0.25,81.337,81.249,49.5576]
[1646689429475,18.4611,81.32,81.267,6.149]
[1646689429675,0.25,81.319,81.263,6.15]
[1646689429874,0.25,81.319,81.264,0.25]
[1646689430079,0.25,81.319,81.265,6.15]
[1646689430277,0.25,81.319,81.266,0.25]
[1646689430478,0.25,81.319,81.267,6.15]
[1646689431486,0.25,81.319,81.27,18.46]
[1646689431683,0.25,81.336,81.271,0.25]
[1646689431881,0.25,81.338,81.271,0.25]
[1646689432082,0.25,81.338,81.271,3.08613526]
[1646689432284,0.25,81.338,81.271,0.25]
[1646689432686,18.4584,81.33,81.261,6.25]
[1646689432883,0.25,81.329,81.261,6.25]
[1646689433287,0.25,81.329,81.262,6.0]
[1646689433482,0.25,81.329,81.263,0.25]
[1646689433683,0.25,81.329,81.261,0.25]
[1646689434087,18.4604,81.32,81.27,18.4596]
[1646689434286,0.25,81.319,81.271,0.25]
[1646689435287,18.4596,81.33,81.271,0.25]
[1646689435485,0.25,81.329,81.271,0.25]
[1646689436085,0.25,81.329,81.28,18.4579]
[1646689436684,0.25,81.338,81.28,18.4579]
[1646689437487,0.25,81.338,81.281,0.25]
[1646689437686,0.25,81.338,81.29,18.451]
[1646689437890,0.25,81.338,81.291,0.25]
[1646689438188,0.25,81.361,81.291,0.25]
[1646689438587,25.5095559,81.37,81.291,0.25]
[1646689438889,28.44264784,81.369,81.291,0.25]
[1646689439087,18.4532,81.36,81.3,18.4523]
[1646689440189,0.25,81.359,81.3,18.4523]
[1646689441288,0.25,81.359,81.282,47.1381]
[1646689441488,122.9,81.349,81.282,47.1381]
[1646689441687,0.25,81.348,81.282,47.1381]
[1646689442092,122.9,81.347,81.282,47.1381]
[1646689442291,0.25,81.346,81.252,2.83613526]
[1646689442489,18.4639,81.33,81.27,18.4603]
[1646689442689,27.86234041,81.329,81.27,18.4603]
[1646689443693,27.86234041,81.329,81.271,0.25]
[1646689443993,18.4617,81.32,81.253,46.4382]
[1646689444191,0.25,81.319,81.253,46.4382]
[1646689445193,123.15,81.328,81.262,0.25]
[1646689445395,0.25,81.328,81.262,0.25]
[1646689445592,0.25,81.328,81.253,46.4382]
[1646689445593,18.4617,81.32,81.26,18.4625]
[1646689445794,0.25,81.319,81.261,0.25]
[1646689446793,0.25,81.328,81.254,0.25]
[1646689447194,0.25,81.328,81.27,18.4601]
[1646689447495,0.25,81.328,81.271,0.25]
[1646689448095,27.61234041,81.329,81.271,0.25]
[1646689449597,18.4615,81.32,81.271,0.25]
[1646689449897,0.25,81.319,81.26,18.462]
[1646689450097,0.25,81.319,81.261,6.0]
[1646689450297,0.25,81.319,81.253,46.4382]
[1646689450797,0.25,81.328,81.254,6.0]
[1646689451198,0.25,81.328,81.27,18.4602]
[1646689451596,0.25,81.328,81.255,0.25]
[1646689451797,18.4619,81.32,81.255,0.25]
[1646689451999,0.25,81.319,81.255,0.25]
[1646689452799,0.25,81.319,81.254,6.25]
[1646689453201,0.25,81.319,81.26,18.4619]
[1646689453401,0.25,81.319,81.261,0.25]
[1646689456502,0.25,81.319,81.27,18.4602]
[1646689458101,0.25,81.319,81.261,0.25]
[1646689458904,0.25,81.319,81.26,18.4623]
[1646689459104,122.9,81.309,81.253,46.4382]
[1646689459304,0.25,81.308,81.23,18.4689]
[1646689460104,123.15,81.308,81.23,18.4689]
[1646689460705,0.25,81.308,81.231,0.25]
[1646689460910,18.4697,81.3,81.24,18.4667]
[1646689461109,38.79917684,81.299,81.241,0.25]
[1646689461305,0.25,81.298,81.241,0.25]
[1646689462126,0.25,81.298,81.25,18.4631]
[1646689462326,0.25,81.298,81.251,0.25]
[1646689462526,0.25,81.324,81.251,46.8229]
[1646689462727,0.25,81.327,81.251,46.8229]
[1646689463331,31.0629916,81.327,81.251,46.8229]
[1646689463728,18.4628,81.32,81.251,46.8229]
[1646689463931,0.25,81.319,81.251,46.8229]
[1646689465030,18.4637,81.31,81.251,46.8229]
[1646689465230,0.25,81.309,81.251,46.8229]
[1646689468438,0.25,81.309,81.26,18.4624]
[1646689468638,0.25,81.319,81.26,18.4624]
[1646689469236,0.25,81.325,81.26,18.4624]
[1646689469843,30.8129916,81.327,81.26,18.4624]
[1646689469844,0.25,81.326,81.26,18.4624]
[1646689470341,0.25,81.326,81.28,18.4567]
[1646689470544,0.25,81.326,81.281,0.25]
[1646689471742,30.8129916,81.327,81.261,31.213]
[1646689471943,30.8129916,81.327,81.261,25.213]
[1646689472143,30.8129916,81.327,81.27,18.4579]
[1646689472344,23.18110857,81.338,81.262,6.0]
[1646689472345,23.18110857,81.338,81.271,0.25]
[1646689472546,1.65513529,81.344,81.272,123.23425076]
[1646689472745,27.95729296,81.356,81.274,0.41454161]
[1646689472944,1.65513529,81.356,81.274,0.41454161]
[1646689473244,1.65513529,81.357,81.276,122.9]
[1646689473446,1.65513529,81.36,81.281,122.9]
[1646689473643,20.10463529,81.37,81.283,122.9]
[1646689473843,20.10463529,81.37,81.291,122.9]
[1646689474145,20.10463529,81.37,81.293,122.9]
[1646689474345,18.4495,81.37,81.294,6.25]
[1646689474543,18.4512,81.36,81.3,18.4491]
[1646689474745,0.25,81.359,81.301,0.25]
[1646689476548,1.65513529,81.374,81.301,123.15]
[1646689476753,1.65513529,81.38,81.311,0.22585755]
[1646689476946,1.65513529,81.384,81.311,0.47585755]
[1646689477347,1.65513529,81.391,81.313,222.9]
[1646689477547,32.40010992,81.39,81.315,0.23005761]
[1646689477747,32.40010992,81.39,81.314,52.2594]
[1646689478148,32.40010992,81.39,81.315,100.0]
[1646689478347,0.25,81.389,81.316,6.25]
[1646689478949,32.40010992,81.39,81.316,6.25]
[1646689479148,50.84610992,81.39,81.32,18.4457]
[1646689479351,50.84610992,81.39,81.321,123.15]
[1646689479550,18.446,81.39,81.322,0.22775416]
[1646689479752,18.446,81.39,81.321,0.25]
[1646689480251,0.25,81.389,81.321,0.25]
[1646689480448,31.49531116,81.389,81.321,0.25]
[1646689480651,18.4469,81.38,81.321,0.25]
[1646689480849,0.25,81.379,81.319,0.25]
[1646689481052,0.25,81.379,81.315,0.25]
[1646689482051,0.25,81.387,81.315,123.15]
[1646689482253,0.25,81.387,81.316,6.0]
[1646689482453,0.25,81.388,81.317,0.25]
[1646689483351,0.25,81.388,81.32,18.4453]
[1646689483553,0.25,81.388,81.321,0.25]
[1646689484354,30.8946685,81.389,81.321,0.25]
[1646689486253,0.25,81.388,81.321,0.25]
[1646689488253,18.4466,81.38,81.321,0.25]
[1646689488454,0.25,81.379,81.315,6.396]
[1646689488855,0.25,81.379,81.315,0.25]
[1646689489655,0.25,81.388,81.315,0.25]
[1646689490259,18.4472,81.38,81.32,18.4462]
[1646689490457,0.25,81.379,81.321,0.25]
[1646689491959,0.25,81.388,81.322,6.146]
[1646689492157,0.25,81.388,81.323,0.25]
[1646689492758,0.25,81.388,81.324,6.144]
[1646689492958,0.25,81.388,81.33,18.444]
[1646689493161,0.25,81.399,81.331,25.1572]
[1646689493360,18.4426,81.4,81.332,6.144]
[1646689493561,18.4426,81.4,81.333,0.25]
[1646689493761,18.4426,81.4,81.334,6.144]
[1646689493960,18.4426,81.4,81.335,0.25]
[1646689494161,18.4426,81.4,81.34,18.4407]
[1646689494360,18.4426,81.4,81.341,6.394]
[1646689494563,18.4401,81.41,81.341,0.25]
[1646689494761,0.25,81.4,81.341,0.25]
[1646689495161,0.25,81.41,81.341,24.0999]
[1646689495361,33.62357275,81.41,81.341,24.0999]
[1646689495983,26.30215767,81.409,81.341,24.0999]
[1646689496184,18.442,81.4,81.341,24.0999]
[1646689496385,0.25,81.399,81.341,24.0999]
[1646689496785,0.25,81.399,81.342,6.144]
[1646689496985,0.25,81.399,81.343,0.25]
[1646689497388,37.36939369,81.389,81.343,0.25]
[1646689497588,0.25,81.388,81.343,0.25]
[1646689498189,0.25,81.388,81.342,0.25]
[1646689499492,0.25,81.388,81.341,23.8499]
[1646689499493,18.4468,81.38,81.341,23.8499]
[1646689499698,0.25,81.379,81.341,23.8499]
[1646689503199,28.84165278,81.369,81.341,23.8499]
[1646689503398,0.25,81.368,81.301,6.144]
[1646689503600,0.25,81.368,81.315,0.25]
[1646689504201,0.25,81.368,81.32,18.4467]
[1646689504400,0.25,81.368,81.322,122.9]
[1646689504601,0.25,81.387,81.323,129.046]
[1646689504803,0.25,81.394,81.324,0.25]
[1646689505001,0.25,81.395,81.325,6.144]
[1646689505201,35.0139305,81.395,81.326,0.25]
[1646689505404,35.0139305,81.395,81.33,18.4408]
[1646689505603,34.7639305,81.395,81.331,6.394]
[1646689505802,34.7639305,81.395,81.332,24.0661]
[1646689506002,34.7639305,81.395,81.333,6.394]
[1646689506504,1.65513529,81.395,81.34,18.4421]
[1646689506702,1.65513529,81.395,81.341,0.25]
[1646689506902,1.65513529,81.399,81.341,0.25]
[1646689507102,1.65513529,81.402,81.342,6.144]
[1646689507309,1.65513529,81.403,81.343,0.25]
[1646689507504,1.65513529,81.403,81.344,6.144]
[1646689507706,0.25,81.402,81.345,0.25]
[1646689508004,37.7366428,81.396,81.345,0.25]
[1646689508205,1.90513529,81.395,81.345,0.25]
[1646689508805,1.90513529,81.395,81.334,0.25]
[1646689509006,1.65513529,81.394,81.335,6.144]
[1646689509206,0.25,81.393,81.336,0.25]
[1646689509409,18.447,81.39,81.337,6.144]
[1646689509606,0.25,81.389,81.338,0.25]
[1646689509811,0.25,81.389,81.337,6.144]
[1646689510006,0.25,81.389,81.332,24.0661]
[1646689510406,0.25,81.389,81.315,6.144]
[1646689510609,0.25,81.389,81.26,241.84]
[1646689510610,18.4466,81.38,81.316,24.6017]
[1646689510906,1.65513529,81.378,81.316,24.6017]
[1646689511107,0.25,81.377,81.317,6.396]
[1646689511406,34.2259412,81.379,81.317,6.396]
[1646689511807,18.45,81.37,81.317,6.396]
[1646689512007,0.25,81.369,81.317,6.396]
[1646689513509,0.25,81.369,81.317,0.25]
[1646689513809,0.25,81.369,81.32,18.4466]
[1646689514009,0.25,81.378,81.321,0.25]
[1646689514209,0.25,81.381,81.321,0.25]
[1646689514412,0.25,81.382,81.321,0.25]
[1646689514610,0.25,81.387,81.321,0.25]
[1646689515210,0.25,81.387,81.33,18.4443]
[1646689515409,0.25,81.387,81.331,0.25]
[1646689515609,0.25,81.388,81.331,0.25]
[1646689515810,0.25,81.388,81.331,6.25]
[1646689516613,0.25,81.389,81.331,6.25]
[1646689517120,0.25,81.389,81.34,18.4424]
[1646689517317,0.25,81.389,81.341,0.25]
[1646689517518,0.25,81.392,81.342,122.9]
[1646689517716,1.65513529,81.402,81.343,0.25]
[1646689517915,1.65513529,81.405,81.343,0.25]
[1646689518117,1.65513529,81.406,81.343,0.25]
[1646689518317,1.65513529,81.406,81.35,18.4396]
[1646689518515,1.65513529,81.408,81.351,23.1169]
[1646689518715,1.65513529,81.408,81.352,0.20551397]
[1646689518916,1.65513529,81.412,81.351,31.5269]
[1646689519119,1.65513529,81.412,81.352,122.9]
[1646689519321,1.65513529,81.412,81.361,122.9]
[1646689519521,1.65513529,81.413,81.363,122.9]
[1646689519721,1.65513529,81.415,81.365,122.9]
[1646689519920,1.65513529,81.42,81.367,122.9]
[1646689520123,1.65513529,81.42,81.369,122.9]
[1646689520321,1.65513529,81.421,81.38,14.43]
[1646689520520,1.65513529,81.436,81.381,129.39477578]
[1646689520719,1.65513529,81.44,81.381,153.3363]
[1646689520925,1.65513529,81.441,81.381,153.3363]
[1646689521125,1.65513529,81.442,81.382,0.27156649]
[1646689521321,1.65513529,81.447,81.382,0.27156649]
[1646689521524,1.65513529,81.447,81.382,15.66596187]
[1646689521720,1.65513529,81.447,81.391,122.9]
[1646689521921,1.65513529,81.447,81.401,122.9]
[1646689522120,1.65513529,81.457,81.403,122.9]
[1646689522320,1.65513529,81.457,81.405,122.9]
[1646689522521,1.65513529,81.462,81.407,122.9]
[1646689522722,1.65513529,81.462,81.41,18.4243]
[1646689522923,1.65513529,81.463,81.411,6.25]
[1646689523121,1.65513529,81.464,81.412,122.9]
[1646689523322,1.65513529,81.464,81.413,6.25]
[1646689523523,0.25,81.463,81.413,6.25]
[1646689523721,0.25,81.463,81.42,18.4246]
[1646689523923,0.25,81.465,81.421,0.25]
[1646689524222,0.25,81.469,81.421,0.25]
[1646689524422,1.65513529,81.47,81.421,0.25]
[1646689524922,1.65513529,81.472,81.421,0.25]
[1646689525326,18.4267,81.47,81.41,18.4267]
[1646689525524,35.873137,81.469,81.411,6.25]
[1646689525825,1.65513529,81.473,81.411,6.25]
[1646689525826,0.25,81.468,81.411,6.25]
[1646689526024,0.25,81.475,81.411,6.25]
[1646689526424,0.25,81.476,81.411,6.25]
[1646689527828,0.25,81.479,81.411,6.25]
[1646689528029,1.65513529,81.483,81.42,18.4226]
[1646689528229,1.65513529,81.484,81.421,24.8354]
[1646689528427,1.65513529,81.487,81.421,24.8354]
[1646689529227,0.25,81.486,81.421,24.8354]
[1646689529628,0.25,81.486,81.422,122.9]
[1646689529827,0.25,81.488,81.423,0.25]
[1646689530835,1.90513529,81.489,81.422,0.25]
[1646689531230,1.65513529,81.488,81.422,0.25]
[1646689531431,33.38521228,81.479,81.421,24.5854]
[1646689531630,0.25,81.478,81.421,24.5854]
[1646689532231,0.25,81.478,81.411,6.0]
[1646689532430,0.25,81.478,81.404,6.0]
[1646689532631,18.4269,81.47,81.404,6.0]
[1646689532832,0.25,81.469,81.405,0.25]
[1646689533633,0.25,81.469,81.41,18.4245]
[1646689533832,1.90513529,81.48,81.412,122.9]
[1646689534032,1.90513529,81.48,81.413,6.25]
[1646689534234,0.25,81.48,81.414,0.25]
[1646689534434,0.25,81.48,81.411,29.6633]
[1646689534634,31.41611833,81.48,81.411,29.6633]
[1646689534933,0.25,81.479,81.411,29.6633]
[1646689537251,35.70455067,81.479,81.412,122.9]
[1646689537452,35.70455067,81.479,81.413,6.25]
[1646689538256,35.70455067,81.479,81.413,0.25]
[1646689539452,0.25,81.479,81.413,0.25]
[1646689539653,1.65513529,81.482,81.421,122.9]
[1646689539852,1.65513529,81.482,81.413,0.25]
[1646689539853,1.65513529,81.49,81.422,129.15]
[1646689540152,1.65513529,81.495,81.424,122.9]
[1646689540352,1.65513529,81.499,81.425,6.0]
[1646689540553,1.65513529,81.5,81.425,6.0]
[1646689540752,1.65513529,81.501,81.431,122.9]
[1646689540955,18.4173,81.51,81.431,122.9]
[1646689540956,1.65513529,81.503,81.432,6.0]
[1646689541153,1.65513529,81.506,81.432,6.0]
[1646689541356,1.65513529,81.507,81.432,6.0]
[1646689541555,1.90513529,81.506,81.433,0.25]
[1646689541758,0.25,81.506,81.434,122.9]
[1646689541957,1.65513529,81.502,81.436,122.9]
[1646689542157,0.25,81.501,81.438,122.9]
[1646689542357,0.25,81.501,81.441,122.9]
[1646689542559,0.25,81.501,81.443,122.9]
[1646689542858,0.25,81.501,81.444,29.8415]
[1646689543260,0.25,81.502,81.444,29.8415]
[1646689543462,0.25,81.502,81.46,18.413]
[1646689543659,0.25,81.503,81.445,122.9]
[1646689543860,1.90513529,81.504,81.446,6.25]
[1646689544559,1.65513529,81.503,81.446,6.25]
[1646689544762,0.25,81.502,81.45,18.4152]
[1646689544963,1.65513529,81.498,81.451,6.25]
[1646689545262,0.25,81.497,81.451,6.25]
[1646689545763,0.25,81.497,81.452,6.0]
[1646689545966,0.25,81.497,81.453,0.25]
[1646689546167,0.25,81.497,81.451,0.25]
[1646689546361,0.25,81.498,81.451,0.25]
[1646689546962,1.90513529,81.498,81.451,0.25]
[1646689547163,1.90513529,81.498,81.446,0.25]
[1646689547763,1.65513529,81.491,81.446,0.25]
[1646689547966,0.25,81.49,81.446,18.6288]
[1646689548164,0.25,81.49,81.447,6.0]
[1646689548366,0.25,81.49,81.448,0.25]
[1646689549177,1.90513529,81.49,81.448,0.25]
[1646689549563,1.90513529,81.49,81.444,23.5915]
[1646689549564,1.90513529,81.49,81.445,0.25]
[1646689549770,1.65513529,81.484,81.445,0.25]
[1646689549966,1.65513529,81.483,81.445,0.25]
[1646689550366,1.65513529,81.483,81.446,6.136]
[1646689550566,1.65513529,81.483,81.447,0.25]
[1646689551769,1.65513529,81.483,81.446,0.25]
[1646689552070,1.65513529,81.482,81.446,0.25]
[1646689553569,0.25,81.481,81.446,0.25]
[1646689553772,1.65513529,81.477,81.446,0.25]
[1646689554170,1.65513529,81.478,81.446,0.25]
[1646689554370,0.25,81.477,81.446,0.25]
[1646689555570,0.25,81.478,81.446,0.25]
[1646689555771,1.90513529,81.478,81.446,0.25]
[1646689558673,1.65513529,81.477,81.446,0.25]
[1646689559874,1.65513529,81.476,81.446,0.25]
[1646689560273,1.65513529,81.477,81.446,0.25]
[1646689560473,1.90513529,81.478,81.446,0.25]
[1646689560672,1.65513529,81.477,81.446,0.25]
[1646689561874,1.65513529,81.477,81.447,6.136]
[1646689562074,1.65513529,81.477,81.448,0.25]
[1646689562274,1.65513529,81.477,81.444,23.5915]
[1646689562275,0.25,81.476,81.449,6.136]
[1646689562477,1.65513529,81.472,81.425,28.9173]
[1646689562675,1.65513529,81.47,81.368,12.82346158]
[1646689562876,1.65513529,81.465,81.392,22.7813]
[1646689563076,1.65513529,81.456,81.393,6.0]
[1646689563296,1.90513529,81.455,81.393,106.0]
[1646689563478,1.65513529,81.448,81.394,6.14]
[1646689563676,1.65513529,81.439,81.393,6.0]
[1646689563876,1.65513529,81.436,81.375,22.7813]
[1646689564077,1.65513529,81.431,81.375,22.7813]
[1646689564380,1.65513529,81.429,81.375,22.7813]
[1646689564576,0.25,81.428,81.375,22.7813]
[1646689564775,1.90513529,81.428,81.375,22.7813]
[1646689564976,0.25,81.428,81.376,6.142]
[1646689565877,18.4376,81.42,81.376,6.142]
[1646689566079,27.89037462,81.419,81.351,47.7629]
[1646689566276,27.89037462,81.419,81.351,66.4555]
[1646689566477,1.65513529,81.418,81.352,6.143]
[1646689566677,0.25,81.417,81.349,6.143]
[1646689566879,1.65513529,81.416,81.349,6.143]
[1646689567077,1.90513529,81.415,81.336,6.143]
[1646689567279,18.4398,81.41,81.336,6.143]
[1646689567478,0.25,81.409,81.336,6.143]
[1646689568079,0.25,81.409,81.338,100.0]
[1646689568278,1.90513529,81.409,81.339,6.144]
[1646689568479,18.4423,81.4,81.339,6.144]
[1646689568679,34.92236842,81.399,81.339,6.144]
[1646689568883,122.9,81.398,81.32,6.144]
[1646689569080,122.9,81.398,81.321,6.0]
[1646689569280,0.25,81.397,81.309,6.144]
[1646689569484,3.08613526,81.397,81.309,6.144]
[1646689569781,2.83613526,81.396,81.309,6.144]
[1646689569979,0.25,81.395,81.31,0.25]
[1646689570380,3.08613526,81.395,81.309,6.144]
[1646689570583,1.65513529,81.383,81.309,6.144]
[1646689570806,122.9,81.369,81.309,6.144]
[1646689571083,18.4516,81.37,81.259,48.4482]
[1646689571084,122.9,81.367,81.263,100.0]
[1646689571281,0.25,81.366,81.264,6.0]
[1646689571483,122.9,81.365,81.26,6.0]
[1646689571689,0.25,81.364,81.26,128.9]
[1646689571982,18.4619,81.36,81.265,2.83613526]
[1646689572184,0.25,81.359,81.266,6.25]
[1646689572583,0.25,81.359,81.267,2.83613526]
[1646689572784,0.25,81.359,81.269,122.9]
[1646689572988,0.25,81.359,81.28,18.4549]
[1646689573184,0.25,81.367,81.281,6.25]